[Event "44th Chess Olympiad Open 2022"]
[Site "Chennai"]
[Date "2022.08.09"]
[Round "11.60"]
[White "Van den Brink, Peter"]
[Black "Oatlhotse, Providence"]
[Result "1/2-1/2"]
[ECO "A21"]
[WhiteElo "2167"]
[BlackElo "2204"]
[Annotator "ChessBase"]
[PlyCount "145"]
[EventDate "2022.07.29"]
[EventType "team-tourn"]
[EventCountry "IND"]
[SourceTitle "playchess.com"]
[Source "ChessBase"]
[SourceQuality "1"]
[WhiteTeam "ARU"]
[BlackTeam "Botswana"]
[BlackTeamCountry "BOT"]
[TimeControl "40/5400+30:1800+30"]

1. c4 {[%emt 0:00:04]} g6 {[%emt 0:00:24]} 2. g3 {[%emt 0:00:06]} Bg7 {[%emt 0:00:03]} 3. Bg2 {[%emt 0:00:05]} e5 {[%emt 0:00:13]} 4. Nc3 {[%emt 0:00:26]} Ne7 {[%emt 0:00:10]} 5. e3 {[%emt 0:05:56]} O-O {[%emt 0:00:47]} 6. Nge2 {[%emt 0:00:18]} c6 {[%emt 0:00:03]} 7. d4 {[%emt 0:04:34]} d6 {[%emt 0:00:12]} 8. O-O {[%emt 0:00:27]} f5 {[%emt 0:05:42]} 9. dxe5 {[%emt 0:14:45]} dxe5 {[%emt 0:00:13]} 10. e4 {[%emt 0:01:05]} Qc7 {[%emt 0:01:23]} 11. f4 {[%emt 0:13:25]} Be6 {[%emt 0:02:04]} 12. b3 {[%emt 0:01:30]} Na6 {[%emt 0:01:43]} 13. Ba3 {[%emt 0:05:53]} Rad8 {[%emt 0:00:21]} 14. Qc2 {[%emt 0:00:38]} Nb4 {[%emt 0:00:56]} 15. Bxb4 {[%emt 0:00:14]} Qb6+ {[%emt 0:00:02]} 16. Kh1 {[%emt 0:07:30]} Qxb4 {[%emt 0:00:05]} 17. a3 {[%emt 0:11:14]} Qa5 {[%emt 0:00:40]} 18. b4 {[%emt 0:01:06]} Qa6 {[%emt 0:00:25]} 19. c5 {[%emt 0:03:11]} Bc4 {[%emt 0:00:35]} 20. Rfd1 {[%emt 0:01:09]} Bd3 {[%emt 0:01:22]} 21. Qa2+ {[%emt 0:06:19]} Qc4 {[%emt 0:01:58]} 22. Rd2 {[%emt 0:08:19]} Qxa2 {[%emt 0:02:06]} 23. Raxa2 {[%emt 0:00:13]} exf4 {[%emt 0:00:30]} 24. gxf4 {[%emt 0:02:42]} Bc4 {[%emt 0:10:24]} 25. Rac2 {[%emt 0:00:01]} fxe4 {[%emt 0:01:56]} 26. Bxe4 {[%emt 0:01:10]} Nf5 {[%emt 0:00:37]} 27. Bxf5 {[%emt 0:01:02]} gxf5 {[%emt 0:00:03]} 28. Kg2 {[%emt 0:00:22]} Bd3 {[%emt 0:05:02]} 29. Ra2 {[%emt 0:00:01]} Rfe8 {[%emt 0:01:11]} 30. Kf3 {[%emt 0:00:08]} Kf7 {[%emt 0:00:34]} 31. Nc1 {[%emt 0:05:31]} Bc4 {[%emt 0:05:29]} 32. Rxd8 {[%emt 0:00:01]} Rxd8 {[%emt 0:00:18]} 33. Rc2 {[%emt 0:00:01]} Bd3 {[%emt 0:06:15]} 34. Rd2 {[%emt 0:00:40]} Be4+ {[%emt 0:00:19]} 35. Nxe4 {[%emt 0:00:11]} fxe4+ {[%emt 0:00:02]} 36. Ke3 {[%emt 0:00:06]} Rxd2 {[%emt 0:00:52]} 37. Kxd2 {[%emt 0:00:01]} Bb2 {[%emt 0:00:31]} 38. Ne2 {[%emt 0:01:50]} Bxa3 {[%emt 0:00:21]} 39. Kc3 {[%emt 0:00:00]} a5 {[%emt 0:00:27]} 40. bxa5 {[%emt 0:00:19]} Bxc5 {[%emt 0:01:02]} 41. Ng3 {[%emt 0:32:21]} e3 {[%emt 0:41:31]} 42. Ne4 {[%emt 0:00:01]} Ba7 {[%emt 0:04:21]} 43. Nd6+ {[%emt 0:00:00]} Ke6 {[%emt 0:00:00]} 44. Nxb7 {[%emt 0:00:00]} Kf5 {[%emt 0:00:00]} 45. Nd8 {[%emt 0:00:00]} Kxf4 {[%emt 0:00:00]} 46. Nxc6 {[%emt 0:00:00]} Kf3 {[%emt 0:00:00]} 47. Ne5+ {[%emt 0:06:45]} Kg2 {[%emt 0:00:00]} 48. h4 {[%emt 0:00:13]} h5 {[%emt 0:00:00]} 49. a6 {[%emt 0:01:01]} Kg3 {[%emt 0:00:00]} 50. Kd3 {[%emt 0:00:40]} Kf2 {[%emt 0:07:43]} 51. Ke4 {[%emt 0:00:21]} e2 {[%emt 0:00:02]} 52. Nd3+ {[%emt 0:00:12]} Kg3 {[%emt 0:00:21]} 53. Ne1 {[%emt 0:00:07]} Bb6 {[%emt 0:06:34]} 54. Nc2 {[%emt 0:00:55]} Kg4 {[%emt 0:12:57]} 55. Ne1 {[%emt 0:00:14]} Bf2 {[%emt 0:00:20]} 56. Nc2 {[%emt 0:00:31]} Bc5 {[%emt 0:09:56]} 57. Ne1 {[%emt 0:00:12]} Ba7 {[%emt 0:01:46]} 58. Nc2 {[%emt 0:00:09]} Kxh4 {[%emt 0:03:35]} 59. Kf3 {[%emt 0:00:02]} Kh3 {[%emt 0:01:40]} 60. Kxe2 {[%emt 0:01:21]} Kg2 {[%emt 0:01:31]} 61. Ne3+ {[%emt 0:00:06]} Kg3 {[%emt 0:00:43]} 62. Nf5+ {[%emt 0:00:09]} Kf4 {[%emt 0:00:29]} 63. Kf1 {[%emt 0:01:07]} Kxf5 {[%emt 0:00:07]} 64. Kg2 {[%emt 0:00:02]} Kg4 {[%emt 0:00:56]} 65. Kh1 {[%emt 0:00:02]} h4 {[%emt 0:00:26]} 66. Kg2 {[%emt 0:00:02]} Kg5 {[%emt 0:00:32]} 67. Kh1 {[%emt 0:00:02]} Kf6 {[%emt 0:00:09]} 68. Kg2 {[%emt 0:00:02]} Ke6 {[%emt 0:00:08]} 69. Kh3 {[%emt 0:00:03]} Kd6 {[%emt 0:00:08]} 70. Kxh4 {[%emt 0:00:02]} Kc6 {[%emt 0:00:08]} 71. Kg4 {[%emt 0:00:02]} Kb6 {[%emt 0:00:04]} 72. Kf5 {[%emt 0:00:04]} Kxa6 {[%emt 0:00:02]} 73. Ke4 {[%emt 0:00:04]} 1/2-1/2

[Event "44th Chess Olympiad Open 2022"]
[Site "Chennai"]
[Date "2022.08.09"]
[Round "11.60"]
[White "Rongwane, Gomolemo"]
[Black "Croes, Octavio"]
[Result "1-0"]
[ECO "E19"]
[WhiteElo "2033"]
[BlackElo "1794"]
[Annotator "NA RC"]
[PlyCount "79"]
[EventDate "2022.07.29"]
[EventType "team-tourn"]
[EventCountry "IND"]
[SourceTitle "playchess.com"]
[Source "ChessBase"]
[SourceQuality "1"]
[WhiteTeam "Botswana"]
[BlackTeam "ARU"]
[WhiteTeamCountry "BOT"]
[TimeControl "40/5400+30:1800+30"]

1. d4 {[%emt 0:00:03]} Nf6 {[%emt 0:00:13]} 2. Nf3 {[%emt 0:00:08]} e6 {[%emt 0:00:16]} 3. g3 {[%emt 0:01:21]} b6 {[%emt 0:00:33]} 4. Bg2 {[%emt 0:00:14]} Bb7 {[%emt 0:00:11]} 5. O-O {[%emt 0:00:19]} Be7 {[%emt 0:00:29]} 6. c4 {[%emt 0:00:15]} O-O {[%emt 0:00:17]} 7. Nc3 {[%emt 0:00:13]} Ne4 {[%emt 0:02:51]} 8. Qc2 {[%emt 0:01:14]} Nxc3 {[%emt 0:00:11]} 9. Qxc3 {[%emt 0:00:17]} f5 {[%emt 0:07:34]} 10. Qd3 {[%emt 0:06:58]} Be4 {[%emt 0:11:07]} 11. Qd1 {[%emt 0:01:26]} d6 {[%emt 0:08:54]} 12. Re1 {[%emt 0:04:19]} Nd7 {[%emt 0:01:32]} 13. Bf1 {[%emt 0:00:47]} c5 {[%emt 0:07:07]} 14. dxc5 {[%emt 0:14:15]} Nxc5 {[%emt 0:00:29]} 15. Nd4 {[%emt 0:06:51]} e5 {[%emt 0:10:28]} 16. Nb5 {[%emt 0:00:25]} Bc6 {[%emt 0:05:15]} 17. Nc3 {[%emt 0:01:10]} Ne4 {[%emt 0:01:54]} 18. Nd5 {[%emt 0:00:25]} Qd7 {[%emt 0:03:59]} 19. Bg2 {[%emt 0:00:21]} Rac8 {[%emt 0:02:04]} 20. b3 {[%emt 0:02:49]} Nf6 {[%emt 0:02:09]} 21. Nxf6+ {[%emt 0:14:15]} Bxf6 {[%emt 0:00:58]} 22. Bd5+ {[%emt 0:00:11]} Kh8 {[%emt 0:00:59]} 23. Ba3 {[%emt 0:00:22]} e4 {[%emt 0:02:13]} 24. Rc1 {[%emt 0:00:17]} Be5 {[%emt 0:00:15]} 25. Qd2 {[%emt 0:04:10]} f4 {[%emt 0:01:31]} 26. Bxc6 {[%emt 0:00:14]} Qxc6 {[%emt 0:00:47]} 27. e3 {[%emt 0:10:34]} f3 {[%emt 0:03:32]} 28. Red1 {[%emt 0:02:09]} Qd7 {[%emt 0:00:33]} 29. Qe1 {[%emt 0:00:31]} Qh3 {[%emt 0:05:43]} 30. Qf1 {[%emt 0:00:12]} Qh6 {[%emt 0:00:05]} 31. Rc2 {[%emt 0:04:27]} Rf5 {[%emt 0:00:37]} 32. h4 {[%emt 0:09:08]} Rcf8 {[%emt 0:01:59]} 33. Rcd2 {[%emt 0:02:06]} R8f6 {[%emt 0:05:43]} 34. Qh3 {[%emt 0:01:32]} Bxg3 {[%emt 0:06:19]} 35. fxg3 {[%emt 0:05:53]} f2+ {[%emt 0:00:13]} 36. Kf1 {[%emt 0:00:42]} Qxe3 {[%emt 0:04:18]} 37. Bb2 {[%emt 0:02:23]} Rf8 {[%emt 0:02:10]} 38. Qg4 {[%emt 0:00:48]} Qh6 {[%emt 0:01:06]} 39. Rxd6 {[%emt 0:00:18]} e3 {[%emt 0:00:27]} 40. Rxh6 {[%emt 0:00:34]} 1-0

[Event "44th Chess Olympiad Open 2022"]
[Site "Chennai"]
[Date "2022.08.09"]
[Round "11.60"]
[White "Monnaatsheko, Keletshabile"]
[Black "Antonio, Kyell-Jean"]
[Result "1-0"]
[ECO "D02"]
[WhiteElo "2014"]
[BlackElo "1497"]
[Annotator "TA"]
[PlyCount "37"]
[EventDate "2022.07.29"]
[EventType "team-tourn"]
[EventCountry "IND"]
[SourceTitle "playchess.com"]
[Source "ChessBase"]
[SourceQuality "1"]
[WhiteTeam "Botswana"]
[BlackTeam "ARU"]
[WhiteTeamCountry "BOT"]
[TimeControl "40/5400+30:1800+30"]

{[%evp 15,36,0,0,0,63,53,54,56,53,58,64,63,53,44,29983,29984,2859,2840,29996,29997,29998,29999,29999]} 1. d4 {[%emt 0:00:14]} d5 {[%emt 0:00:26]} 2. Bf4 {[%emt 0:00:30]} c5 {[%emt 0:00:35]} 3. e3 {[%emt 0:00:18]} Nf6 {[%emt 0:04:26]} 4. c3 {[%emt 0:00:11]} e6 {[%emt 0:00:05]} 5. Nd2 {[%emt 0:00:16]} Bd6 {[%emt 0:00:04]} 6. Bg3 {[%emt 0:00:11]} Nc6 {[%emt 0:00:24]} 7. Ngf3 {[%emt 0:00:13]} O-O {[%emt 0:00:18]} 8. Bd3 {[%emt 0:00:12]} b6 {[%emt 0:02:01]} 9. e4 {[%emt 0:00:24] And now e5 would win. 9.Qe2 gains popularity. D02: 1 d4 d5 2 Nf3 sidelines, including 2...Nf6 3 g3 and 2...Nf6 3 Bf4.} dxe4 {[%emt 0:02:16]} ({Better is} 9... Be7 $11) 10. Nxe4 $14 {[%emt 0:00:15]} Nxe4 {[%emt 0:00:06]} 11. Bxe4 {[%emt 0:00:15] White is slightly better.} Bb7 {[%emt 0:01:20]} 12. dxc5 {[%emt 0:00:19]} Bxc5 {[%emt 0:02:17]} 13. Qa4 {[%emt 0:00:24]} Rc8 {[%emt 0:18:41]} 14. Rd1 $36 {[%emt 0:00:50][%mdl 2048] White has some pressure.} Qe8 {[%emt 0:04:40][%mdl 8192] [#]} (14... Qe7 $14) 15. Bxh7+ $1 {[%emt 0:04:25][%mdl 512]} Kh8 {[%emt 0:07:06]} 16. Qh4 {[%emt 0:00:51] [#] White wants to mate with Bb1+.} g5 $146 {[%emt 0:23:26]} ({Predecessor:} 16... Qe7 17. Qh5 {1-0 (17) Santagati,A (2279)-Donate Moreno,S (2008) Benidorm 2021}) 17. Qh6 {[%emt 0:04:10] White mates.} f5 {[%emt 0:15:35]} 18. Bg6+ {[%emt 0:00:35]} Kg8 {[%emt 0:00:02]} 19. Qh7# {[%emt 0:00:08] Black got outplayed after the opening.  Weighted Error Value: White=0.00 (flawless) /Black=1.45} 1-0

[Event "44th Chess Olympiad Open 2022"]
[Site "Chennai"]
[Date "2022.08.09"]
[Round "11.60"]
[White "Stetsenko, Ilya"]
[Black "Oratile, Kgotlane"]
[Result "0-1"]
[ECO "B27"]
[WhiteElo "1683"]
[BlackElo "2024"]
[Annotator "NA RC"]
[PlyCount "68"]
[EventDate "2022.07.29"]
[EventType "team-tourn"]
[EventCountry "IND"]
[SourceTitle "playchess.com"]
[Source "ChessBase"]
[SourceQuality "1"]
[WhiteTeam "ARU"]
[BlackTeam "Botswana"]
[BlackTeamCountry "BOT"]
[TimeControl "40/5400+30:1800+30"]

1. e4 {[%emt 0:00:03]} c5 {[%emt 0:00:03]} 2. Nf3 {[%emt 0:00:03]} g6 {[%emt 0:00:19]} 3. d4 {[%emt 0:00:03]} cxd4 {[%emt 0:00:03]} 4. Qxd4 {[%emt 0:00:03]} Nf6 {[%emt 0:00:06]} 5. Nc3 {[%emt 0:00:02]} Nc6 {[%emt 0:00:07]} 6. Qa4 {[%emt 0:00:01]} d6 {[%emt 0:00:10]} 7. e5 {[%emt 0:00:03]} dxe5 {[%emt 0:00:10]} 8. Nxe5 {[%emt 0:00:02]} Bd7 {[%emt 0:00:11]} 9. Nxc6 {[%emt 0:00:03]} Bxc6 {[%emt 0:00:10]} 10. Bb5 {[%emt 0:00:02]} Qd7 {[%emt 0:02:39]} 11. Bxc6 {[%emt 0:00:08]} bxc6 {[%emt 0:00:06]} 12. O-O {[%emt 0:00:23]} Bg7 {[%emt 0:00:04]} 13. Rd1 {[%emt 0:01:02]} Qb7 {[%emt 0:00:05]} 14. Be3 {[%emt 0:00:23]} O-O {[%emt 0:00:06]} 15. Rab1 {[%emt 0:05:28]} Nd5 {[%emt 0:02:57]} 16. Nxd5 {[%emt 0:02:48]} cxd5 {[%emt 0:00:08]} 17. Rd3 {[%emt 0:08:18]} Rfc8 {[%emt 0:00:59]} 18. Rb3 {[%emt 0:17:19]} Qc7 {[%emt 0:00:25]} 19. c3 {[%emt 0:00:46]} Rd8 {[%emt 0:02:08]} 20. g3 {[%emt 0:05:22]} Rd7 {[%emt 0:01:10]} 21. Rd1 {[%emt 0:00:43]} e5 {[%emt 0:00:21]} 22. Rb5 {[%emt 0:20:12]} d4 {[%emt 0:04:02]} 23. cxd4 {[%emt 0:01:00]} exd4 {[%emt 0:00:04]} 24. Bf4 {[%emt 0:09:51]} Qd8 {[%emt 0:01:15]} 25. Rd3 {[%emt 0:00:30]} Rc8 {[%emt 0:00:45]} 26. Be5 {[%emt 0:05:16]} Qe8 {[%emt 0:03:42]} 27. Bxg7 {[%emt 0:02:28]} Rd5 {[%emt 0:16:53]} 28. Ra5 {[%emt 0:08:25]} Qe1+ {[%emt 0:02:19]} 29. Kg2 {[%emt 0:00:01]} Rxa5 {[%emt 0:01:02]} 30. Qxd4 {[%emt 0:00:14]} Rc1 {[%emt 0:07:57]} 31. Bh8 {[%emt 0:08:56]} Qf1+ {[%emt 0:06:11]} 32. Kf3 {[%emt 0:00:08]} Rf5+ {[%emt 0:02:27]} 33. Ke4 {[%emt 0:04:13]} Qe2+ {[%emt 0:00:15]} 34. Re3 {[%emt 0:01:33]} Qc2+ {[%emt 0:00:06]} 0-1

[Event "44th Chess Olympiad Open 2022"]
[Site "Chennai"]
[Date "2022.08.09"]
[Round "11.61"]
[White "Garcia Cuestas, Kevin"]
[Black "Salim Mohammed, Salim Al Amri"]
[Result "0-1"]
[ECO "D02"]
[WhiteElo "1984"]
[BlackElo "1917"]
[Annotator "TA"]
[PlyCount "78"]
[EventDate "2022.07.29"]
[EventType "team-tourn"]
[EventCountry "IND"]
[SourceTitle "playchess.com"]
[Source "ChessBase"]
[SourceQuality "1"]
[WhiteTeam "Honduras"]
[BlackTeam "OMA"]
[WhiteTeamCountry "HON"]
[TimeControl "40/5400+30:1800+30"]

{[%evp 9,78,-18,-11,-71,-41,-62,-2,-25,-20,-35,-16,-22,-9,-9,-8,-10,-6,-6,-9,-13,0,0,11,-6,15,7,44,32,44,42,47,33,40,39,47,18,31,29,80,4,9,0,0,0,-3,-9,-10,-15,-10,-30,-21,-29,-29,-26,-5,-18,-10,-22,-22,-202,-72,-207,-170,-643,-633,-958,-954,-5206,-1459,-1454,-989]} 1. Nf3 {[%emt 0:00:09]} c5 {[%emt 0:00:10]} 2. g3 {[%emt 0:00:34]} d5 {[%emt 0:00:11]} 3. d4 {[%emt 0:00:45]} Nc6 {[%emt 0:01:38]} 4. Bg2 {[%emt 0:01:45]} Bg4 {[%emt 0:00:04]} 5. c3 {[%emt 0:02:45]} e6 {[%emt 0:00:31]} 6. Qa4 {[%emt 0:03:48] D02: 1 d4 d5 2 Nf3 sidelines, including 2...Nf6 3 g3 and 2...Nf6 3 Bf4.} (6. Ne5 $11 {remains equal.} Bf5 7. O-O) 6... Bxf3 $17 {[%emt 0:00:16]} 7. Bxf3 {[%emt 0:00:19] [#]} Nf6 $146 {[%emt 0:00:56] Prevents e4.} (7... cxd4 $1 $15 8. cxd4 Qf6) ({Predecessor:} 7... cxd4 8. cxd4 Qf6 9. Be3 Bb4+ 10. Nc3 Nge7 11. a3 Ba5 12. g4 Qh4 13. O-O-O a6 {0-1 (36) Egger,T (2194)-Fuchs,G (2206) Bayern 2007}) 8. Nd2 {[%emt 0:05:01] The position is equal.} cxd4 {[%emt 0:01:16]} 9. cxd4 {[%emt 0:02:25]} Qb6 {[%emt 0:00:03]} 10. e3 {[%emt 0:02:35]} Be7 {[%emt 0:00:35]} 11. O-O {[%emt 0:01:49]} O-O {[%emt 0:00:04]} 12. a3 {[%emt 0:14:03]} Rfc8 {[%emt 0:03:12]} 13. b4 {[%emt 0:05:47]} a5 {[%emt 0:02:12][%cal Ra5b4]} 14. b5 {[%emt 0:03:07]} Na7 {[%emt 0:00:20]} 15. Rb1 {[%emt 0:03:36]} Qd8 {[%emt 0:01:09]} 16. Bb2 {[%emt 0:09:14]} Qd7 {[%emt 0:03:46]} 17. Be2 {[%emt 0:02:55]} b6 {[%emt 0:02:58]} 18. Nf3 {[%emt 0:01:19]} Bd6 {[%emt 0:00:52]} 19. Rfc1 {[%emt 0:08:39]} Ne4 {[%emt 0:00:30]} 20. Qd1 {[%emt 0:02:01]} f6 {[%emt 0:11:13]} (20... Nxb5 $2 21. Qa4 $18) 21. Bd3 {[%emt 0:03:06]} f5 {[%emt 0:01:10]} (21... Nxb5 $2 22. Qa4 $18) 22. Ne5 {[%emt 0:04:14]} Bxe5 {[%emt 0:01:42]} 23. dxe5 {[%emt 0:00:05]} Nc5 {[%emt 0:00:11]} (23... Nxb5 $2 24. Qa4 $18) (23... Rxc1 $1 $11 {keeps the balance.} 24. Rxc1 a4) 24. Bf1 {[%emt 0:05:01]} (24. a4 $16) 24... a4 $11 {[%emt 0:00:25]} 25. Bd4 {[%emt 0:02:24]} Nb3 {[%emt 0:00:03]} 26. Rxc8+ {[%emt 0:00:30]} Rxc8 {[%emt 0:00:55]} 27. Rxb3 {[%emt 0:03:53]} ({Don't play} 27. Bxb6 Nxb5 28. Bxb5 Qxb5 $17) 27... axb3 {[%emt 0:00:14]} 28. Qxb3 {[%emt 0:00:08]} Rb8 {[%emt 0:04:34]} 29. Qb4 {[%emt 0:01:05]} Nc8 {[%emt 0:00:28][%cal Ba7c8,Bc8e7,Be7f5][%mdl 32]} 30. a4 {[%emt 0:00:35]} Ra8 {[%emt 0:00:19]} 31. Be2 $1 {[%emt 0:01:15]} Kf7 {[%emt 0:01:01]} 32. Kg2 {[%emt 0:01:15]} Qc7 {[%emt 0:00:49]} 33. Bc3 {[%emt 0:08:10]} Ne7 {[%emt 0:02:58]} 34. g4 $2 {[%emt 0:01:54] [#]} (34. Bh5+ $1 $11 g6 35. Bf3) 34... g6 {[%emt 0:08:46]} (34... Rc8 $19 35. Bb2 Qc2) 35. gxf5 {[%emt 0:00:54]} (35. h3 $17) 35... Nxf5 $19 {[%emt 0:01:09] aiming for ...Rc8.} 36. Bf3 $2 {[%emt 0:00:43]} (36. Bg4) 36... Rc8 {[%emt 0:01:45] Black is clearly winning.} 37. Bd4 {[%emt 0:00:26]} Qc1 {[%emt 0:00:53] [#] Against Qd2. ( -> ...Nh4+)} 38. Bxb6 {[%emt 0:00:25]} Rc4 {[%emt 0:00:20]} 39. Qxc4 {[%emt 0:00:43]} Qxc4 {[%emt 0:00:32] Weighted Error Value: White=0.75/Black=0.13 (very precise)} 0-1

[Event "44th Chess Olympiad Open 2022"]
[Site "Chennai"]
[Date "2022.08.09"]
[Round "11.61"]
[White "Salim Issa, Ali Shamas"]
[Black "Gavarrete, Joel"]
[Result "0-1"]
[ECO "D37"]
[WhiteElo "1851"]
[BlackElo "2035"]
[Annotator "NA RC"]
[PlyCount "162"]
[EventDate "2022.07.29"]
[EventType "team-tourn"]
[EventCountry "IND"]
[SourceTitle "playchess.com"]
[Source "ChessBase"]
[SourceQuality "1"]
[WhiteTeam "OMA"]
[BlackTeam "Honduras"]
[BlackTeamCountry "HON"]
[TimeControl "40/5400+30:1800+30"]

1. d4 {[%emt 0:00:06]} d5 {[%emt 0:00:28]} 2. Nf3 {[%emt 0:00:18]} Nf6 {[%emt 0:00:26]} 3. c4 {[%emt 0:00:11]} e6 {[%emt 0:01:12]} 4. Nc3 {[%emt 0:00:16]} Be7 {[%emt 0:02:10]} 5. Qb3 {[%emt 0:00:38]} a6 {[%emt 0:15:26]} 6. cxd5 {[%emt 0:00:59]} exd5 {[%emt 0:00:28]} 7. Bg5 {[%emt 0:00:25]} c6 {[%emt 0:02:29]} 8. e3 {[%emt 0:00:36]} O-O {[%emt 0:01:37]} 9. Bd3 {[%emt 0:00:14]} Nbd7 {[%emt 0:06:58]} 10. O-O {[%emt 0:06:51]} b5 {[%emt 0:06:43]} 11. a4 {[%emt 0:00:50]} b4 {[%emt 0:00:15]} 12. Nb1 {[%emt 0:00:40]} a5 {[%emt 0:00:30]} 13. Nbd2 {[%emt 0:00:21]} c5 {[%emt 0:00:29]} 14. Bxf6 {[%emt 0:00:43]} Nxf6 {[%emt 0:01:33]} 15. dxc5 {[%emt 0:00:17]} Bxc5 {[%emt 0:00:22]} 16. Rac1 {[%emt 0:00:13]} Bb6 {[%emt 0:07:55]} 17. Qc2 {[%emt 0:02:16]} Bd7 {[%emt 0:04:38]} 18. b3 {[%emt 0:00:21]} Qe7 {[%emt 0:04:12]} 19. Bf5 {[%emt 0:01:11]} Rfd8 {[%emt 0:12:16]} 20. Bxd7 {[%emt 0:04:02]} Rxd7 {[%emt 0:04:10]} 21. Qc6 {[%emt 0:00:43]} Rb8 {[%emt 0:00:17]} 22. Qc2 {[%emt 0:02:03]} Rc7 {[%emt 0:01:00]} 23. Qd3 {[%emt 0:00:28]} Rbc8 {[%emt 0:00:20]} 24. Rxc7 {[%emt 0:00:17]} Qxc7 {[%emt 0:00:10]} 25. h3 {[%emt 0:00:50]} h6 {[%emt 0:03:47]} 26. Qf5 {[%emt 0:01:21]} Qc2 {[%emt 0:03:50]} 27. Qxc2 {[%emt 0:08:05]} Rxc2 {[%emt 0:00:07]} 28. Rd1 {[%emt 0:00:21]} Rc3 {[%emt 0:05:53]} 29. Kf1 {[%emt 0:02:17]} Kf8 {[%emt 0:00:18]} 30. Ke2 {[%emt 0:00:18]} Ke7 {[%emt 0:01:01]} 31. Ne5 {[%emt 0:03:29]} Ke6 {[%emt 0:00:47]} 32. Nd3 {[%emt 0:00:29]} g5 {[%emt 0:07:31]} 33. g3 {[%emt 0:07:23]} Rc2 {[%emt 0:03:02]} 34. Rc1 {[%emt 0:00:34]} Rxc1 {[%emt 0:00:06]} 35. Nxc1 {[%emt 0:00:15]} Ne4 {[%emt 0:00:10]} 36. Nf3 {[%emt 0:04:26]} f5 {[%emt 0:01:23]} 37. Nd3 {[%emt 0:00:57]} h5 {[%emt 0:02:34]} 38. h4 {[%emt 0:05:58]} g4 {[%emt 0:01:29]} 39. Nf4+ {[%emt 0:00:56]} Kd6 {[%emt 0:00:22]} 40. Ng5 {[%emt 0:01:32]} Nc5 {[%emt 0:00:52]} 41. Nxh5 {[%emt 0:31:46]} Nxb3 {[%emt 0:30:16]} 42. Nf4 {[%emt 0:15:11]} Bd8 {[%emt 0:00:00]} 43. Nf7+ {[%emt 0:00:00]} Ke7 {[%emt 0:00:00]} 44. Nxd8 {[%emt 0:00:00]} Kxd8 {[%emt 0:00:00]} 45. Nxd5 {[%emt 0:00:00]} Nc5 {[%emt 0:00:00]} 46. h5 {[%emt 0:00:00]} Ke8 {[%emt 0:00:00]} 47. h6 {[%emt 0:00:00]} Kf7 {[%emt 0:00:00]} 48. Ne7 {[%emt 0:00:00]} Nxa4 {[%emt 0:00:00]} 49. Nxf5 {[%emt 0:00:00]} Kg6 {[%emt 0:00:00]} 50. e4 {[%emt 0:00:00]} Nc5 {[%emt 0:00:00]} 51. e5 {[%emt 0:00:00]} a4 {[%emt 0:00:00]} 52. Kd2 {[%emt 0:00:00]} a3 {[%emt 0:00:00]} 53. Kc2 {[%emt 0:00:00]} b3+ {[%emt 0:00:00]} 54. Kb1 {[%emt 0:00:00]} Na4 {[%emt 0:00:00]} 55. Ne7+ {[%emt 0:00:00]} Kxh6 {[%emt 0:00:00]} 56. Nd5 {[%emt 0:00:00]} Nc5 {[%emt 0:00:00]} 57. Ne3 {[%emt 0:00:00]} Ne4 {[%emt 0:00:00]} 58. Nc4 {[%emt 0:00:00]} Nc3+ {[%emt 0:00:00]} 59. Ka1 {[%emt 0:00:00]} b2+ {[%emt 0:00:00]} 60. Nxb2 {[%emt 0:00:00]} axb2+ {[%emt 0:00:00]} 61. Kxb2 {[%emt 0:00:00]} Nd1+ {[%emt 0:00:00]} 62. Kc2 {[%emt 0:00:00]} Nxf2 {[%emt 0:00:00]} 63. Kd2 {[%emt 0:00:00]} Kg5 {[%emt 0:00:00]} 64. e6 {[%emt 0:00:00]} Kf6 {[%emt 0:00:27]} 65. Ke3 {[%emt 0:00:00]} Nh3 {[%emt 0:00:13]} 66. e7 {[%emt 0:00:00]} Kxe7 {[%emt 0:00:05]} 67. Kd4 {[%emt 0:00:00]} Kd6 {[%emt 0:00:02]} 68. Ke4 {[%emt 0:00:00]} Ke6 {[%emt 0:00:01]} 69. Kd4 {[%emt 0:00:00]} Kf5 {[%emt 0:00:01]} 70. Ke3 {[%emt 0:00:00]} Ke5 {[%emt 0:00:00]} 71. Kd3 {[%emt 0:00:00]} Nf2+ {[%emt 0:00:06]} 72. Ke2 {[%emt 0:00:00]} Ne4 {[%emt 0:00:02]} 73. Ke3 {[%emt 0:00:00]} Nxg3 {[%emt 0:00:05]} 74. Kf2 {[%emt 0:00:00]} Kf4 {[%emt 0:00:01]} 75. Kg2 {[%emt 0:00:00]} Ne4 {[%emt 0:00:10]} 76. Kh2 {[%emt 0:00:00]} Kf3 {[%emt 0:02:23]} 77. Kg1 {[%emt 0:00:00]} g3 {[%emt 0:00:18]} 78. Kf1 {[%emt 0:00:00]} g2+ {[%emt 0:01:21]} 79. Kg1 {[%emt 0:00:00]} Ng3 {[%emt 0:00:09]} 80. Kh2 {[%emt 0:00:00]} Ne2 {[%emt 0:00:09]} 81. Kh3 {[%emt 0:00:00]} g1=Q {[%emt 0:00:10]} 0-1